bitfinex/quotes_ETHUSD_20241122
["timestamp","ask_amount","ask_price","bid_price","bid_amount"]
[1732243756870,3.01023,3322.0,3321.4,0.7819]
[1732243757068,3.01007,3322.2,3321.4,1.082]
[1732243757266,3.01015,3322.1,3321.6,0.3001]
[1732243757496,6.00989,3322.4,3321.7,1.082]
[1732243757713,3.01012,3322.2,3321.7,1.082]
[1732243757921,3.00962,3322.7,3322.0,0.7819]
[1732243758069,3.00942,3322.9,3322.0,1.082]
[1732243758514,3.00965,3322.7,3322.0,1.082]
[1732243759214,1.082,3323.3,3322.2,0.3001]
[1732243759371,3.0094,3323.0,3322.4,0.3001]
[1732243759779,3.00922,3323.2,3322.4,0.3001]
[1732243759986,0.300914,3323.1,3322.4,0.3001]
[1732243760266,3.00948,3322.9,3322.4,0.3001]
[1732243760468,3.0,3323.1,3321.5,0.01]
[1732243760688,3.00857,3323.9,3321.3,3.0]
[1732243760689,3.00901,3323.4,3322.1,0.3001]
[1732243760913,3.00857,3323.9,3322.5,0.3001]
[1732243761114,3.00834,3324.1,3323.2,1.082]
[1732243761271,3.00834,3324.1,3323.4,0.3001]
[1732243761471,3.00815,3324.3,3323.4,0.3001]
[1732243761472,3.00843,3324.0,3323.4,0.3001]
[1732243761888,3.00835,3324.1,3323.4,0.3001]
[1732243762134,3.00835,3324.1,3323.5,0.8175]
[1732243762295,3.00835,3324.1,3323.5,1.1176]
[1732243762835,3.0,3324.2,3323.6,1.1176]
[1732243762986,3.00798,3324.5,3322.7,0.01]
[1732243762987,3.00797,3324.5,3323.8,0.3001]
[1732243763186,3.00806,3324.4,3323.8,0.3001]
[1732243763389,3.00832,3324.2,3323.7,0.8175]
[1732243763588,3.00839,3324.1,3323.7,0.8175]
[1732243764024,3.00847,3324.0,3323.7,0.8175]
[1732243764189,3.00839,3324.1,3323.7,0.8175]
[1732243764789,3.601638,3324.2,3323.7,0.8175]
[1732243765030,3.0,3324.2,3323.7,0.8175]
[1732243765846,3.00799,3324.5,3323.7,0.8175]
[1732243767346,3.00816,3324.3,3323.7,0.8175]
[1732243767624,3.00806,3324.4,3323.7,0.8175]
[1732243768229,6.00788,3324.6,3323.7,0.8175]
[1732243768428,3.0,3324.4,3323.7,0.8175]
[1732243769413,3.0,3324.8,3323.7,0.8175]
[1732243769590,3.00812,3324.4,3323.7,0.8175]
[1732243769790,3.00818,3324.3,3323.7,0.8175]
[1732243770310,3.00798,3324.5,3323.7,0.8175]
[1732243770527,3.00824,3324.2,3323.7,0.8175]
[1732243770907,3.00853,3323.9,3323.7,0.8175]
[1732243771225,3.00841,3324.1,3323.7,0.8175]
[1732243771790,3.0086,3323.8,3323.7,0.8175]
[1732243772893,3.00849,3324.0,3323.7,0.8175]
[1732243773201,3.0,3324.3,3323.7,0.8175]
[1732243773202,3.0086,3323.8,3323.7,0.8175]
[1732243773400,3.00852,3323.9,3323.7,0.8175]
[1732243773624,3.0086,3323.8,3323.7,0.8175]
[1732243774034,3.00894,3323.5,3323.4,0.812]
[1732243774344,3.00877,3323.7,3323.4,0.812]
[1732243774830,3.00879,3323.6,3323.4,0.812]
[1732243775032,3.00887,3323.5,3323.4,0.812]
[1732243775342,3.00862,3323.8,3323.4,0.812]
[1732243775831,3.00839,3324.1,3323.4,0.812]
[1732243776352,6.59027523,3324.5,3323.4,0.812]
[1732243776500,3.00798,3324.5,3323.4,0.812]
[1732243777208,3.0082,3324.3,3323.4,0.812]
[1732243777394,3.00826,3324.2,3323.4,0.812]
[1732243777595,3.00815,3324.4,3323.4,0.812]
[1732243778042,3.008,3324.5,3323.4,0.812]
[1732243778333,3.58229523,3324.6,3323.4,0.812]
[1732243778551,3.00798,3324.5,3323.4,0.812]
[1732243779097,3.00807,3324.4,3323.7,0.3001]
[1732243779439,3.00829,3324.2,3323.7,0.3001]
[1732243780096,0.35822952,3324.5,3323.7,0.3001]
[1732243780298,3.00794,3324.6,3323.8,1.1121]
[1732243780511,3.00769,3324.8,3324.0,0.3001]
[1732243780512,6.0078,3324.7,3324.0,0.3001]
[1732243780926,3.00789,3324.6,3324.0,0.3001]
[1732243781222,3.00815,3324.3,3324.0,0.3001]
[1732243781424,3.608769,3324.5,3324.0,0.3001]
[1732243781628,3.00798,3324.5,3324.0,0.3001]
[1732243781949,6.00781,3324.7,3324.0,0.3001]
[1732243782742,3.00789,3324.6,3324.1,1.0997]
[1732243784432,3.0,3325.1,3324.1,1.0997]
[1732243784433,3.00753,3325.0,3324.1,1.0997]
[1732243784634,3.00722,3325.4,3324.4,0.3001]
[1732243784838,3.00726,3325.3,3324.6,0.3001]
[1732243785048,3.00726,3325.3,3324.8,0.3001]
[1732243785624,3.00729,3325.3,3324.8,0.3001]
[1732243786112,3.00741,3325.2,3324.8,0.3001]
[1732243786312,3.00739,3325.2,3324.8,0.3001]
[1732243787059,3.00735,3325.2,3324.8,0.3001]
[1732243787711,0.50168152,3325.2,3324.8,0.3001]
[1732243787907,3.00742,3325.1,3324.8,0.3001]
[1732243788512,3.00726,3325.3,3324.8,0.3001]
[1732243788962,3.00709,3325.5,3324.8,0.3001]
[1732243791413,3.00709,3325.5,3324.2,0.3001]
[1732243791617,3.00709,3325.5,3324.4,0.3001]
[1732243791820,3.00709,3325.5,3324.8,0.3001]
[1732243792045,3.00678,3325.9,3325.0,0.3001]
[1732243792214,3.58229523,3326.4,3325.4,0.3001]
[1732243792428,3.58229523,3326.4,3325.6,0.3001]
[1732243792429,0.65884752,3326.4,3325.6,0.3001]
[1732243792747,0.832,3326.8,3325.0,0.03007464]
[1732243792748,3.8054,3326.9,3326.0,0.3001]
[1732243792913,3.8054,3326.9,3325.3,0.01]
[1732243792914,0.7996,3326.9,3326.2,0.3001]
[1732243793110,3.00563,3327.1,3326.4,0.3001]
[1732243793345,3.58229523,3327.3,3326.4,0.3001]
[1732243793346,3.00579,3327.0,3326.4,0.3001]
[1732243793734,3.00614,3326.6,3326.4,0.3001]
[1732243793942,3.00625,3326.4,3326.3,0.7996]
[1732243794249,6.58854523,3326.4,3325.7,0.7996]
[1732243794427,3.00648,3326.2,3325.7,0.7996]
[1732243794941,3.00659,3326.1,3325.7,0.7996]
[1732243795358,3.83798,3326.7,3325.7,0.7996]
[1732243795359,6.58804523,3327.0,3325.7,0.7996]
[1732243795670,6.58802523,3327.0,3325.7,0.7996]
[1732243796783,3.58229523,3327.3,3325.7,0.7996]
[1732243796960,3.00563,3327.1,3325.8,0.7996]
[1732243797271,6.00553,3327.2,3326.0,0.7996]
[1732243797468,3.00564,3327.1,3326.0,0.7996]
[1732243797881,3.00563,3327.1,3326.0,0.7996]
[1732243798176,3.00607,3326.6,3326.0,0.7996]
[1732243798980,3.58229523,3327.0,3326.0,0.7996]
[1732243799265,3.00635,3326.3,3326.0,0.7996]
[1732243799499,3.00646,3326.2,3326.0,0.7996]
[1732243799705,3.00635,3326.3,3326.0,0.7996]
[1732243799876,3.00652,3326.1,3326.0,0.7996]
[1732243800067,3.00635,3326.3,3326.0,0.7996]
[1732243800266,3.00652,3326.1,3326.0,0.7996]
[1732243800503,3.58229523,3326.4,3326.0,0.7996]
[1732243800696,3.00652,3326.1,3326.0,0.7996]
[1732243801205,3.00676,3325.9,3325.6,0.7996]
[1732243801567,3.00688,3325.7,3325.6,0.7996]
[1732243801812,3.00659,3326.1,3325.6,0.7996]
[1732243802013,3.00649,3326.2,3325.6,0.7996]
[1732243802182,3.00668,3326.0,3325.6,0.7996]
[1732243802387,3.00649,3326.2,3325.6,0.7996]
[1732243802868,3.00688,3325.7,3325.6,0.7996]
[1732243803070,3.00709,3325.5,3324.9,0.3001]
[1732243803274,3.00709,3325.5,3324.8,0.7996]
[1732243803505,3.00717,3325.4,3324.9,0.22309857]
[1732243803706,1.132649,3326.2,3325.0,0.22309857]
[1732243803707,3.0069,3325.7,3325.0,0.22309857]
[1732243803878,3.58229523,3325.9,3325.1,1.02269857]
[1732243803879,6.58906523,3325.9,3325.1,1.02269857]
[1732243804079,6.58873523,3326.2,3325.2,0.22309857]
[1732243804290,6.58873523,3326.2,3325.3,1.02269857]
[1732243804496,3.00659,3326.1,3325.4,0.22309857]
[1732243804811,3.00659,3326.1,3325.5,0.22309857]
[1732243805114,3.00659,3326.1,3325.6,1.02270759]
[1732243805266,3.00663,3326.0,3325.6,0.7996]
[1732243805466,3.00649,3326.2,3325.6,0.7996]
[1732243805788,3.00636,3326.3,3325.6,0.7996]
[1732243805993,3.00656,3326.1,3325.6,0.7996]
[1732243806200,3.00636,3326.3,3325.6,0.7996]
[1732243806384,6.58847523,3326.5,3325.7,0.22323901]
[1732243806586,3.00601,3326.7,3325.8,0.22323141]
[1732243806918,3.00624,3326.5,3325.9,1.02283141]
[1732243807225,3.00625,3326.4,3325.9,0.7996]
[1732243807417,3.00643,3326.2,3325.9,0.7996]
[1732243807784,3.00625,3326.4,3325.9,0.7996]
[1732243807984,3.0057,3327.1,3325.9,0.7996]
[1732243807985,3.58229523,3327.1,3325.9,0.7996]
[1732243808422,3.00584,3326.9,3326.0,0.22328639]
[1732243808717,3.00559,3327.2,3326.1,0.7996]
[1732243808924,3.58229523,3327.4,3326.1,0.7996]
[1732243809106,3.58229523,3327.4,3326.3,0.7996]
[1732243809315,3.00533,3327.5,3326.5,0.7996]
[1732243810729,3.00491,3327.9,3326.6,0.7996]
[1732243810894,3.00491,3327.9,3326.8,1.0997]
[1732243811080,6.58684523,3328.3,3326.9,1.0779]
[1732243811286,3.00437,3328.5,3327.3,0.3001]
[1732243811484,3.58229523,3328.6,3327.5,0.7778]
[1732243811733,3.58229523,3328.0,3327.5,0.7778]
[1732243811896,3.00516,3327.6,3327.5,0.7778]
[1732243812095,3.00543,3327.4,3326.0,0.7778]
[1732243812296,3.00543,3327.4,3326.1,0.80785783]
[1732243812506,3.00543,3327.4,3326.5,3.0]
[1732243812724,3.58229523,3327.7,3326.6,1.3779]
[1732243812918,3.00525,3327.5,3326.6,1.0779]
[1732243813783,3.00476,3328.1,3326.9,1.0779]
[1732243813985,3.58229523,3328.0,3327.1,0.7778]
[1732243814183,3.00548,3327.3,3327.1,0.7778]
[1732243814462,3.00516,3327.6,3327.1,0.7778]
[1732243815038,3.00526,3327.5,3327.1,0.7778]
[1732243815401,3.00537,3327.4,3327.1,0.7778]
[1732243815706,6.58739523,3327.7,3327.1,0.7778]
[1732243815893,3.00535,3327.4,3327.1,0.7778]
[1732243816096,3.00553,3327.2,3327.1,0.7778]
[1732243817332,3.00531,3327.5,3327.1,0.7778]
[1732243817996,3.00489,3328.0,3327.1,0.7778]
[1732243818498,3.58229523,3328.3,3327.1,0.7778]
[1732243818710,3.00498,3327.9,3327.1,0.7778]
[1732243819019,3.00499,3327.8,3327.1,0.7778]
[1732243819424,3.00486,3328.0,3327.1,0.7778]
[1732243819731,3.00492,3327.9,3327.1,0.7778]
[1732243821401,3.00499,3327.8,3327.1,0.7778]
[1732243822829,3.58229523,3328.3,3327.1,0.7778]
[1732243823008,3.0049,3327.9,3327.1,0.7778]
[1732243823725,3.00498,3327.8,3327.1,0.7778]
[1732243823930,3.00512,3327.7,3327.2,0.3001]
[1732243824108,3.00508,3327.7,3327.2,0.3001]
[1732243824953,3.91916523,3327.7,3327.2,0.3001]
[1732243825242,3.00543,3327.3,3326.8,0.7778]
[1732243825432,3.00543,3327.3,3326.9,0.3001]
[1732243826540,3.00533,3327.5,3326.9,0.3001]
[1732243827219,3.00535,3327.4,3326.9,0.3001]
[1732243828120,3.58229523,3327.7,3326.9,0.3001]
[1732243828463,3.00492,3327.9,3326.7,0.3001]
[1732243828752,3.00452,3328.4,3327.3,0.3001]
[1732243828933,3.00455,3328.3,3327.4,1.1261]
[1732243829250,3.00452,3328.4,3327.4,1.1261]
[1732243829461,3.00442,3328.5,3327.6,0.3001]
[1732243829643,3.00428,3328.6,3327.6,0.3001]
[1732243829972,3.66368752,3328.6,3327.6,0.3001]
[1732243830124,3.00385,3329.1,3328.0,0.3001]
[1732243830452,3.00385,3329.1,3327.2,0.35956478]
[1732243830453,3.00376,3329.2,3328.2,0.3001]
[1732243830620,3.00364,3329.3,3328.4,0.3001]
[1732243830821,3.78396,3329.5,3327.4,3.03004593]
[1732243830822,6.58558523,3329.7,3328.6,1.1261]
[1732243831125,3.00301,3330.0,3329.4,0.826]
[1732243831371,3.0031,3329.9,3329.4,0.826]
[1732243831660,3.00293,3330.1,3329.4,0.826]
[1732243831661,0.300293,3330.0,3329.4,0.826]
[1732243831856,3.00318,3329.8,3329.4,0.826]
[1732243832362,0.05636115,3329.7,3329.4,0.826]
[1732243832826,3.00318,3329.8,3329.4,0.826]
[1732243833022,3.00361,3329.4,3328.7,0.3001]
[1732243833223,3.00338,3329.6,3328.7,0.3001]
[1732243833452,0.05621861,3329.3,3328.7,0.3001]
[1732243833775,0.0561573,3329.2,3328.9,0.3001]
[1732243833947,3.00293,3330.1,3328.3,1.376]
[1732243834146,0.7805,3330.4,3328.2,0.3298385]
[1732243834147,3.0033,3329.7,3328.5,0.826]
[1732243834320,3.58229523,3330.0,3328.5,0.826]
[1732243834321,3.00345,3329.5,3328.5,0.826]
[1732243834519,3.05983991,3329.4,3328.5,0.826]
[1732243834744,0.05627991,3329.4,3328.5,0.826]
[1732243835163,0.05627991,3329.4,3328.6,0.03004068]
[1732243835325,0.05627991,3329.4,3328.2,0.826]
[1732243835528,0.05627991,3329.4,3328.4,0.826]
[1732243835721,3.00338,3329.6,3328.5,0.03003948]
[1732243835922,0.05634122,3329.5,3328.6,0.826]
[1732243836522,6.66163952,3329.9,3328.6,0.826]
[1732243836722,3.00345,3329.5,3328.6,0.826]
[1732243836983,0.05627991,3329.4,3328.6,0.826]
[1732243837347,3.004,3328.9,3328.6,0.826]
[1732243837550,3.00383,3329.1,3328.6,0.826]
[1732243837748,0.05621861,3329.3,3328.6,0.826]
[1732243837749,0.05591468,3328.8,3328.6,0.826]
[1732243837992,3.00373,3329.2,3328.6,0.826]
[1732243838202,0.05585311,3328.7,3328.6,0.826]
[1732243838365,0.7805,3328.9,3328.0,0.826]
[1732243838552,0.05585311,3328.7,3328.0,0.826]
[1732243838751,3.00417,3328.7,3328.0,0.826]
[1732243839046,3.00435,3328.5,3328.0,0.826]
[1732243839246,3.00455,3328.3,3328.0,0.826]
[1732243839451,0.0555406,3328.2,3328.0,0.826]
[1732243839773,3.00455,3328.3,3328.0,0.826]
[1732243839951,0.05547925,3328.1,3328.0,0.826]
[1732243840158,3.0,3328.9,3328.0,0.826]
[1732243840352,6.00401,3328.9,3328.0,0.826]
[1732243840550,0.0559193,3328.8,3328.0,0.826]
[1732243840975,0.0559193,3328.8,3328.2,0.826]
[1732243841253,3.58229523,3329.6,3328.2,0.826]
[1732243841449,3.00355,3329.4,3328.4,0.826]
[1732243841779,0.05622589,3329.3,3328.4,0.826]
[1732243842505,0.05622589,3329.3,3328.5,0.03004076]
[1732243842797,3.00311,3329.9,3328.6,0.7986]
[1732243843100,0.05619553,3329.2,3328.8,0.7986]
[1732243843250,3.303223,3330.1,3329.7,8.75]
[1732243843453,3.00293,3330.1,3329.0,0.7986]
[1732243843654,3.05969221,3330.0,3329.0,0.7986]
[1732243844064,3.05969221,3330.0,3329.1,0.2998]
[1732243844464,0.05669221,3330.0,3329.2,1.12843556]
[1732243844694,0.05669221,3330.0,3329.4,0.2998]
[1732243844871,0.7801,3331.1,3329.6,0.2998]
[1732243845055,0.7801,3331.1,3329.4,0.03002828]
[1732243845056,6.58444523,3331.0,3329.8,0.2998]
[1732243845257,0.05731572,3331.0,3330.0,0.2998]
[1732243845481,3.00155,3331.7,3330.4,1.0984]
[1732243845686,0.300155,3331.6,3330.4,1.0984]
[1732243845896,0.0558398,3331.6,3330.4,1.0984]
[1732243846062,0.0558398,3331.6,3330.1,0.03002316]
[1732243846063,0.0558398,3331.6,3330.6,0.2998]
[1732243846262,3.00134,3331.9,3329.7,0.36956478]
[1732243846263,3.00134,3331.9,3330.7,1.12841981]
[1732243846567,0.1483547,3332.0,3331.0,0.2998]
[1732243846769,0.05600889,3331.8,3331.0,0.2998]
[1732243847083,3.00147,3331.7,3330.9,0.7986]
[1732243847286,0.05594767,3331.7,3330.9,0.7986]
[1732243847454,3.00158,3331.6,3330.9,0.7986]
[1732243847658,3.0017,3331.5,3330.9,0.7986]
[1732243848005,3.00192,3331.2,3330.9,0.7986]
[1732243848159,3.0021,3331.0,3330.5,0.7986]
[1732243848496,3.00255,3330.5,3330.4,0.2998]
[1732243848717,3.00255,3330.5,3330.2,0.7986]
[1732243848994,3.00255,3330.5,3328.0,0.03002481]
[1732243848995,3.0,3330.4,3328.2,0.8186]
[1732243849313,3.00302,3330.0,3328.4,0.7986]
[1732243849485,3.00285,3330.2,3328.6,0.7986]
[1732243849673,0.05487554,3329.9,3328.9,0.2998]
[1732243849860,0.05487554,3329.9,3328.7,0.03003336]
[1732243849861,0.05499811,3330.1,3329.1,0.2998]
[1732243850190,0.05493682,3330.0,3329.3,0.7986]
[1732243850570,3.00265,3330.4,3329.3,0.7986]
[1732243850773,0.05487554,3329.9,3329.3,0.7986]
[1732243851080,3.00275,3330.3,3329.3,0.7986]
[1732243851290,0.05481425,3329.8,3329.3,0.7986]
[1732243851590,3.00283,3330.2,3329.3,0.7986]
[1732243851792,0.05475296,3329.7,3329.3,0.7986]
[1732243852010,0.05499811,3330.1,3329.3,0.7986]
[1732243852199,0.05286656,3329.6,3329.3,1.0984]
[1732243852499,3.0031,3329.9,3329.3,1.0984]
[1732243852697,3.0032,3329.8,3329.3,0.7986]
[1732243852857,3.05618915,3329.8,3329.3,0.7986]
[1732243853058,3.00328,3329.7,3329.3,0.7986]
[1732243853499,0.05286656,3329.6,3329.3,0.7986]
[1732243854208,0.05286656,3329.6,3329.4,0.2998]
[1732243855203,3.78243,3330.8,3329.4,0.2998]
[1732243855502,0.05280526,3329.5,3329.4,0.8498]
[1732243855945,3.00212,3331.0,3329.8,0.2998]
[1732243856234,3.05405575,3330.9,3330.0,0.2998]
[1732243856999,3.00243,3330.7,3330.0,0.2998]
[1732243857438,0.05168198,3330.6,3330.0,0.2998]
[1732243858311,3.00261,3330.5,3330.0,0.2998]
[1732243858719,0.05155945,3330.4,3330.0,0.2998]
[1732243859250,3.00277,3330.3,3330.0,0.2998]
[1732243859416,0.53752901,3330.3,3330.0,0.2998]
[1732243859627,0.05143691,3330.2,3330.0,0.2998]
[1732243859956,0.05143691,3330.2,3328.3,0.2998]
[1732243860163,3.00291,3330.1,3328.8,0.2998]
[1732243860318,3.00336,3329.6,3328.8,0.2998]
[1732243860520,0.05100789,3329.5,3328.9,0.7986]
[1732243860720,3.00288,3330.2,3329.2,0.2998]
[1732243861027,3.05436563,3330.1,3329.2,0.2998]
[1732243861362,3.003,3330.0,3329.2,0.2998]
[1732243861568,0.05125307,3329.9,3329.2,0.2998]
[1732243861852,3.00256,3330.5,3329.6,0.2998]
[1732243862077,0.051171,3329.8,3329.7,1.67812895]
[1732243862228,3.00239,3330.7,3329.9,0.2998]
[1732243862627,0.05166048,3330.6,3329.9,0.2998]
[1732243862868,0.05166048,3330.6,3330.3,0.2998]
[1732243863066,3.00194,3331.2,3330.3,0.2998]
[1732243863327,0.05159921,3330.5,3330.4,0.03002527]
[1732243863479,3.00194,3331.2,3330.3,0.2998]
[1732243863835,3.0022,3330.9,3330.3,0.2998]
[1732243864369,3.00237,3330.7,3330.3,0.2998]
[1732243864576,4.5801051,3331.4,3330.3,0.2998]
[1732243864577,0.05168005,3330.6,3330.3,0.2998]
[1732243864772,3.00233,3330.8,3330.3,0.2998]
[1732243864935,0.05174131,3330.7,3330.3,0.2998]
[1732243865131,6.00402,3331.1,3330.3,0.2998]
[1732243865335,3.78502,3331.2,3329.7,0.7983]
[1732243865336,4.63203016,3331.0,3329.7,0.7983]
[1732243865579,3.00286,3330.2,3329.7,0.7983]
[1732243865739,0.05137442,3330.1,3329.7,0.7983]
[1732243865944,3.00193,3331.2,3330.9,8.69862558]
[1732243866167,0.05029509,3331.1,3330.3,0.2998]
[1732243866361,3.00164,3331.6,3330.6,0.7983]
[1732243866534,0.05053519,3331.5,3330.6,0.7983]
[1732243866881,0.30521752,3331.4,3330.5,0.2998]
[1732243867096,7.5826151,3330.6,3329.9,0.7983]
[1732243867250,6.00222,3330.9,3329.9,0.7983]
[1732243867454,0.04994064,3330.5,3329.9,0.7983]
[1732243867665,3.0,3330.7,3329.9,0.7983]
[1732243867894,0.04987937,3330.4,3330.0,0.82832625]
[1732243868104,3.00168,3331.5,3330.0,0.82832625]
[1732243868267,3.1495547,3332.0,3330.1,3.56]
[1732243868463,3.1495547,3332.0,3330.5,0.55]
[1732243868464,0.05047904,3331.4,3330.5,0.55]
[1732243868680,3.00135,3331.9,3330.8,0.55]
[1732243868882,0.0504178,3331.3,3331.0,0.55]
[1732243869101,0.46329917,3332.0,3331.1,0.22282019]
[1732243869281,0.05035657,3331.2,3331.0,0.55]
[1732243869600,0.1483547,3332.0,3331.4,0.55]
[1732243869757,0.1483547,3332.0,3331.8,0.55]
[1732243869954,0.1483547,3332.0,3331.9,0.22291687]
[1732243870657,0.1483547,3332.0,3331.9,3.22404235]
[1732243871210,7.5791351,3334.5,3332.3,0.7983]
[1732243871360,2.99976,3333.6,3332.6,0.55]
[1732243871695,0.7831,3334.6,3332.8,1.3483]
[1732243871696,0.04969104,3333.5,3332.8,1.3483]
[1732243871894,0.04969104,3333.5,3333.0,0.7983]
[1732243872073,2.99919,3334.3,3333.2,0.7983]
[1732243872272,0.04977388,3333.4,3333.3,0.80273629]
[1732243872612,4.5801051,3334.9,3333.3,3.77274235]
[1732243872910,2.9991,3334.4,3333.6,0.55]
[1732243873070,2.9991,3334.4,3333.7,0.22274235]
[1732243873390,0.04902855,3334.3,3334.0,0.55]
[1732243873602,0.04902855,3334.3,3333.9,0.83]
[1732243873901,2.99841,3335.1,3334.0,3.22092228]
[1732243874063,2.99876,3334.8,3334.0,2.9994]
[1732243874260,2.99887,3334.6,3334.0,2.9994]
[1732243874569,0.05163099,3335.0,3334.1,0.52999279]
[1732243874921,0.05163099,3335.0,3334.1,0.89939811]
[1732243875204,0.05163099,3335.0,3334.2,3.25040488]
[1732243875422,0.05163099,3335.0,3334.3,1.45061498]
[1732243875574,0.05163099,3335.0,3334.4,3.02898718]
[1732243875774,0.05163099,3335.0,3334.4,3.42838529]
[1732243876010,0.05163099,3335.0,3334.5,0.39939811]
[1732243876475,0.05163099,3335.0,3334.6,2.9989]
[1732243876675,2.99877,3334.7,3334.6,2.9989]
[1732243876982,0.3050401,3334.7,3334.6,2.9989]
[1732243877174,3.05018099,3335.0,3334.6,2.9989]
[1732243877376,0.05163099,3335.0,3334.6,2.9989]
[1732243877671,0.05163099,3335.0,3334.7,0.83]
[1732243878678,0.05163099,3335.0,3334.8,2.9987]
[1732243879103,0.05163099,3335.0,3334.9,0.55]
[1732243879310,0.05163099,3335.0,3334.9,4.77799811]
[1732243879472,0.1483547,3335.3,3334.9,4.3786]
[1732243879811,0.1483547,3335.3,3335.0,0.02997862]
[1732243880314,0.1483547,3335.3,3335.2,1.38]
[1732243880513,2.99644,3337.3,3335.6,0.55]
[1732243880723,2.99644,3337.3,3335.8,0.55]
[1732243881016,3.82103,3337.5,3336.2,0.55]
[1732243881180,2.99654,3337.2,3336.4,0.55]
[1732243881509,2.99681,3336.9,3336.5,2.9972]
[1732243881686,2.99662,3337.1,3336.5,2.9972]
[1732243882791,0.681757,3337.2,3336.5,2.9972]
[1732243882792,2.99655,3337.2,3336.5,2.9972]
[1732243883126,2.99585,3338.0,3336.5,2.9972]
[1732243883127,2.99574,3338.1,3336.8,0.7805]
[1732243883333,4.5801051,3338.5,3337.1,0.55]
[1732243883631,0.31437847,3338.4,3337.0,0.7805]
[1732243883838,2.99563,3338.2,3337.1,3.57656297]
[1732243883993,0.68116105,3338.2,3337.1,4.01226927]
[1732243884193,2.99546,3338.4,3337.1,4.01226927]
[1732243884831,4.5801051,3338.5,3337.1,3.57656297]
[1732243885036,3.0,3338.2,3337.1,2.9966]
[1732243885193,3.0,3338.0,3337.1,2.9966]
[1732243885395,5.99588,3338.0,3337.1,2.9966]
[1732243885704,5.99581,3338.0,3337.1,2.9966]
[1732243886021,2.99652,3337.2,3337.1,2.9966]
[1732243886338,5.99652,3337.2,3337.1,2.9966]
[1732243887117,6.77422,3337.2,3337.1,1.49829]
[1732243887812,6.77422,3337.2,3335.7,0.8177]
[1732243887813,2.99731,3336.4,3335.7,0.8177]
[1732243888003,2.99731,3336.4,3335.2,0.8177]
[1732243888004,1.077431,3336.3,3335.2,0.8177]
[1732243888200,2.99733,3336.3,3335.3,0.02997563]
[1732243888650,3.0,3336.8,3335.2,0.84767567]
[1732243888801,0.7777,3336.9,3335.2,1.27637162]
[1732243889002,2.99709,3336.6,3335.2,0.84767567]
[1732243889345,3.0,3337.3,3335.3,0.8177]
[1732243889346,5.99304,3337.2,3335.3,0.8177]
[1732243889664,3.0,3337.1,3335.7,0.8177]
[1732243889811,0.677422,3337.0,3336.0,0.55]
[1732243890007,3.0,3337.3,3336.1,0.02997162]
[1732243890241,0.04413511,3337.2,3336.3,0.55]
[1732243890454,0.04413511,3337.2,3336.6,0.55]
[1732243890611,2.99609,3337.7,3336.7,0.02996321]
[1732243890946,0.04407409,3337.1,3336.6,0.55]
[1732243891147,0.29958,3337.9,3336.6,0.57996326]
[1732243891348,0.04403714,3337.0,3336.6,0.57996326]
[1732243891643,3.0,3337.6,3336.6,0.57996326]
[1732243892052,2.99643,3337.4,3336.6,0.55]
[1732243892340,2.99643,3337.4,3336.7,0.02996777]
[1732243892548,0.7777,3338.3,3336.8,0.8177]
[1732243892549,0.0442202,3337.3,3336.8,0.8177]
[1732243892756,0.0442202,3337.3,3336.9,0.57996324]
[1732243892909,2.99598,3337.8,3336.9,0.57996324]
[1732243893254,0.57435182,3338.2,3336.9,0.57996324]
[1732243893549,0.04446423,3337.7,3336.9,0.57996324]
[1732243893709,2.99599,3337.8,3336.9,0.57996324]
[1732243893912,0.04440323,3337.6,3336.9,0.57996324]
[1732243894114,2.99619,3337.6,3336.9,0.55]
[1732243894313,0.04434222,3337.5,3336.9,0.55]
[1732243894514,0.04434222,3337.5,3336.9,0.84967]
[1732243894847,0.04434222,3337.5,3336.8,0.8177]
[1732243894848,0.64799544,3337.5,3336.8,0.8177]
[1732243895046,0.04434222,3337.5,3336.8,0.8177]
[1732243895345,3.04061222,3337.5,3336.8,0.8177]
[1732243895555,2.99637,3337.4,3336.8,0.8177]
[1732243895708,0.299637,3337.3,3336.8,0.8177]
[1732243896049,0.04415918,3337.2,3336.8,0.8177]
[1732243896441,2.99652,3337.2,3336.8,0.8177]
[1732243896615,0.04409816,3337.1,3336.8,0.8177]
[1732243897017,0.04409816,3337.1,3336.1,0.02996605]
[1732243897018,0.04409816,3337.1,3336.4,0.8177]
[1732243897227,2.99703,3336.7,3336.4,0.8177]
[1732243897427,0.7777,3337.5,3336.4,0.8177]
[1732243897428,2.9967,3337.0,3336.4,0.8177]
[1732243897648,0.043793,3336.6,3336.4,0.8177]
[1732243897961,2.99706,3336.7,3336.4,0.8177]
[1732243898175,0.04378831,3336.5,3336.4,0.8177]
[1732243898324,0.04377675,3336.5,3336.2,0.55]
[1732243899255,0.33008578,3336.9,3336.2,0.84974]
[1732243899576,2.99624,3337.6,3336.2,0.84974]
[1732243899577,0.04239165,3336.4,3336.3,1.07030812]
[1732243899722,7.96176822,3337.9,3336.9,0.8177]
[1732243899723,2.99626,3337.5,3336.9,0.8177]
[1732243899925,2.99607,3337.7,3336.9,1.11737]
[1732243900122,0.04154085,3337.4,3337.2,0.29964]
[1732243900423,2.99591,3337.9,3337.3,0.22075393]
[1732243900659,2.99572,3338.1,3337.3,0.29964]
[1732243900823,0.377342,3338.1,3337.4,0.22073006]
[1732243901024,2.9959,3337.9,3337.3,0.29964]
[1732243901361,2.99603,3337.8,3337.4,0.22073666]
[1732243901526,2.99603,3337.8,3337.5,0.22073666]
[1732243901720,2.99603,3337.8,3337.2,0.55]
[1732243901925,2.99603,3337.8,3337.3,0.22094945]